Cogmind - Beta 16.1 @@@ ROGUE MODE // 2026.05.03 @ 17:32:06 Player: Kidcannon Result: Destroyed by G5-P0U(R) with Subdweller Machine Gun Performance ------------- Evolutions (0) 0 Regions Visited (2) 400 Robots Destroyed (16) 80 Value Destroyed (419) 419 Prototype IDs (2) 40 Alien Tech Used (0) 0 Bonus (0) 0 TOTAL SCORE: 939 Bonus ------- None Cogmind --------- Core Integrity 0/250 Matter 280/300 Energy 100/100 System Corruption 0% Temperature Cool (0) Movement Walking (120) Location -10/Subcaves Parts ------- > --- POWER (1) -------- Subdweller Power Source > --- PROPULSION (2) --- Carbon-fiber Leg Myomer Leg > --- UTILITY (2) ------ Targeting Computer Armor Integrity Analyzer > --- WEAPON (2) ------- Battle Rifle Subdweller Machine Gun > --- INVENTORY (5) ---- Heat Sink Terrain Scanner EM Pulse Gun Peak State ------------ > --- POWER ------------ Subdweller Power Source > --- PROPULSION ------- Carbon-fiber Leg Myomer Leg > --- UTILITY ---------- Targeting Computer Armor Integrity Analyzer > --- WEAPON ----------- Subdweller Machine Gun Subdweller Machine Gun > --- INVENTORY -------- Subdweller Monowheel Subdweller Monowheel Heat Sink Terrain Scanner EM Pulse Gun [Rating: 21] Favorites ----------- Power Light Ion Engine Engine Light Ion Engine Propulsion Aluminum Leg Leg Aluminum Leg Wheel Subdweller Monowheel Utility Large Storage Unit Device Heat Sink Storage Large Storage Unit Processor Armor Integrity Analyzer Protection Scrap Shield Weapon Light Assault Rifle Energy Gun EM Pulse Gun Ballistic Gun Light Assault Rifle Build | -11 -10 -10 ------- Run | Yrd Mat Sub Slots Evolved . | . . . Power . | . . . Propulsion . | . . . Utility . | . . . Weapon . | . . . Parts Attached 24 | 6 5 13 Power 3 | 1 . 2 Engine 3 | 1 . 2 Core . | . . . Reactor . | . . . Propulsion 8 | 2 2 4 Treads . | . . . Leg 6 | 2 2 2 Wheel 2 | . . 2 Hover . | . . . Flight . | . . . Utility 7 | 1 2 4 Device 2 | 1 . 1 Storage 1 | . 1 . Processor 3 | . 1 2 Hackware . | . . . Protection 1 | . . 1 Artifact . | . . . Weapon 6 | 2 1 3 Energy Gun 2 | 1 1 . Energy Cannon . | . . . Ballistic Gun 4 | 1 . 3 Ballistic Cannon . | . . . Launcher . | . . . Special Weapon . | . . . Impact Weapon . | . . . Slashing Weapon . | . . . Piercing Weapon . | . . . Special Melee Weapon . | . . . Unidentified Prototypes . | . . . Parts Lost 5 | . 3 2 Power 1 | . 1 . Propulsion 2 | . 1 1 Utility 1 | . . 1 Weapon 1 | . 1 . Highest Loss Streak 2 | . 2 2 To Critical Strikes . | . . . Average Backups 2 | . 2 3 Power . | . . . Propulsion . | . . . Utility 1 | . 1 2 Weapon . | . . . Tool/Special . | . . . Unused Backups 1 | . . 1 Power . | . . . Propulsion . | . . . Utility 1 | . . 1 Weapon . | . . . Tool/Special . | . . . Average Slot Usage (%) 83 | . 77 90 Engine 7 | . 4 11 Leg 20 | . 18 23 Wheel 1 | . . 4 Device 3 | . 7 . Storage 7 | . 13 . Processor 13 | . 6 21 Energy Gun 6 | . 12 . Ballistic Gun 18 | . 14 24 Peak Build Rating 21 | 6 7 21 Average Rating 9 | 4 5 16 On Entrance 4 | . 6 7 Avg Prop Armor Cover (%) 11 | . . 11 Naked Turns . | . . . Heaviest Build 27 | 7 27 24 Greatest Support 40 | 20 20 40 Greatest Overweight (x) 2 | 2 2 2 Average Overweight (x) . | . 1 . Largest Inventory Capacity 15 | 5 15 15 Average Capacity 9 | 5 14 5 Most Carried 7 | 2 4 7 Average Carried 2 | . 2 3 Final Capacity 15 | 5 15 5 Final Carried 4 | . 4 3 Class Distribution -------------------- 71% | Mutant 28% | Scavenger-Mutant Dominant Class ---------------- Mutant | -10/Materials Scavenger-Mutant | -10/Subcaves Resources | -11 -10 -10 ----------- Run | Yrd Mat Sub Matter Collected 474 | 264 79 131 Remotely . | . . . Salvage Created 460 | 38 287 135 Parts 32 | 5 19 8 Haulers Intercepted . | . . . Recyclers Shooed . | . . . Parts Field Recycled . | . . . Retrieved Matter . | . . . Parts Self-Destructed . | . . . Prevented . | . . . Parts Restored . | . . . Kills | -11 -10 -10 ------- Run | Yrd Mat Sub Combat Hostiles Destroyed 11 | 1 7 3 Guns 7 | 1 3 3 AOE 4 | . 4 . Classes Destroyed 6 | 1 4 1 Worker 1 | . 1 . Builder 2 | . 2 . Watcher 2 | . 2 . Swarmer 3 | . 3 . Grunt 5 | 1 4 . Subdweller 3 | . . 3 Best Kill Streak 6 | 1 6 2 Combat Bots Only 4 | 1 4 2 Max Kills in Single Turn 5 | 1 5 1 Gunslinging . | . . . Exploded 3 | . 3 . Melee . | . . . Uniques/NPCs Destroyed . | . . . Combat | -11 -10 -10 -------- Run | Yrd Mat Sub Hostile Shots Fired 66 | 4 23 39 Missed 23 | 3 8 12 Hits 43 | 1 15 27 Projectile 43 | 1 15 27 AOE 1 | . 1 . Critical Strikes 1 | . 1 . Damage Taken 1062 | 10 468 584 Core 261 | 10 101 150 Absorbed by Shields . | . . . Regen/Repaired (Parts) 3 | . 3 . Core Remaining (%) 96 | 96 . . Volleys Fired 58 | 4 31 23 Largest 2 | 2 2 2 Hottest 60 | 60 60 55 Shots Fired 86 | 8 53 25 Gun 86 | 8 53 25 Cannon . | . . . Launcher . | . . . Special . | . . . Kinetic 60 | 4 31 25 Thermal . | . . . Explosive . | . . . Electromagnetic 26 | 4 22 . Robot Hit Streak 8 | 3 8 8 Robot Miss Streak 5 | 2 5 1 Penetration Max . | . . . Secondary Targets 1 | . 1 . Max Gunslinging Chain 1 | . 1 . Shots Hit Robots 53 | 5 27 21 Core Hits 27 | 2 16 9 Critical Kills . | . . . Critical Parts Destroyed . | . . . Critical Strikes 2 | . . 2 Destroy 2 | . . 2 Melee Attacks . | . . . Impact . | . . . Slashing . | . . . Piercing . | . . . Sneak Attacks . | . . . Combat Hostiles . | . . . Follow-up Attacks . | . . . Damage Inflicted 1137 | 52 862 223 Guns 555 | 52 280 223 Cannons . | . . . Explosions 573 | . 573 . Melee . | . . . Ramming 9 | . 9 . Kinetic 355 | 24 108 223 Thermal 21 | . 21 . Explosive 552 | . 552 . Electromagnetic 200 | 28 172 . Impact . | . . . Slashing . | . . . Piercing . | . . . Highest Corruption . | . . . Average Corruption . | . . . Corruption Purged . | . . . Corruption Blocked . | . . . Overload Shots . | . . . Overflow Damage 165 | . 165 . Projectiles . | . . . Explosions 165 | . 165 . Melee . | . . . Knockbacks . | . . . Impact . | . . . Kinetic . | . . . Secondary . | . . . Self-Inflicted Damage 111 | . 111 . Shots 2 | . 2 . Rammed . | . . . Targets Rammed 2 | . 2 . Kicked 2 | . 2 . Crushed . | . . . Highest Temperature 46 | 46 37 . Average Temperature 15 | 21 13 . Received Heat Transfer 189 | 6 105 78 Siege Activations . | . . . Martial Activations . | . . . Shielding Activations . | . . . Robots Disrupted . | . . . Combat Hostiles . | . . . Robots Corrupted . | . . . Combat Hostiles . | . . . Parts Fried . | . . . Impact Corruptions . | . . . Robots Melted . | . . . Combat Hostiles . | . . . Parts Melted 1 | . 1 . Heat Transferred 50 | . 50 . Parts Sabotaged . | . . . Parts Stolen . | . . . Parts Stripped . | . . . Power Chain Reactions 1 | . 1 . Alert | -11 -10 -10 ------- Run | Yrd Mat Sub Maximum Alert Level . | . . . Low Security (%) 100 | 100 100 . Level 1 . | . . . Level 2 . | . . . Level 3 . | . . . Level 4 . | . . . Level 5 . | . . . High Security . | . . . Max Security . | . . . Peak Influence 140 | 20 140 . Initial . | . . . Average 23 | . 38 . Influence Increases 319 | 20 299 . Destroy 0b10 Robot/C 160 | 20 140 . Destroy 0b10 Robot/NC 25 | . 25 . Destroy Leader 34 | . 34 . Successful Hack 3 | . 3 . Disable Machine 45 | . 45 . Destroy Structure 37 | . 37 . Lose Combat Pursuer 15 | . 15 . Influence Decreases 319 | 20 245 54 Entered New Map 26 | . . 26 Time Decay 263 | 20 215 28 Lost Part 30 | . 30 . Squads Dispatched 1 | . 1 . Investigation . | . . . Extermination . | . . . Reinforcement 1 | . 1 . Assault . | . . . Garrison . | . . . Intercept . | . . . Searches Triggered . | . . . Construction Impeded . | . . . Haulers Reinforced . | . . . Active Scanning Responses . | . . . Cargo Convoy Interrupts . | . . . Stealth | -11 -10 -10 --------- Run | Yrd Mat Sub Distress Signals 1 | . 1 . Communications Jammed . | . . . Distress Signals . | . . . Times Spotted 27 | 1 16 10 Peak Tracking Total 7 | 1 4 7 Tactical Retreats 1 | . 1 . Traps | -11 -10 -10 ------- Run | Yrd Mat Sub Traps Triggered . | . . . Indirectly . | . . . Trap Hack Attempts . | . . . Triggered . | . . . Disarmed . | . . . Reprogrammed . | . . . Reused . | . . . Traps Extracted . | . . . Installed . | . . . Triggered . | . . . Machines | -11 -10 -10 ---------- Run | Yrd Mat Sub Machines Disabled 3 | . 3 . Max in Single Turn 2 | . 2 . Machines Repaired . | . . . Machines Dismantled . | . . . Machines Sabotaged . | . . . Overloaded Fab Kills . | . . . Hacking | -11 -10 -10 --------- Run | Yrd Mat Sub Machines Accessed 2 | . 2 . Terminals 1 | . 1 . Fabricators . | . . . Repair Stations 1 | . 1 . Recycling Units . | . . . Scanalyzers . | . . . Garrison Access . | . . . Total Hacks 9 | . 9 . Successful 5 | . 5 . Failed 4 | . 4 . Catastrophic 1 | . 1 . Database Lockouts . | . . . Manual 1 | . 1 . Terminals 4 | . 4 . Fabricators . | . . . Repair Stations 5 | . 5 . Recycling Units . | . . . Scanalyzers . | . . . Garrison Access . | . . . Terminal Hacks 3 | . 3 . Prototype ID Bank 1 | . 1 . Alert Level 2 | . 2 . Fabricator Hacks . | . . . Repair Station Hacks 2 | . 2 . Scan Component 1 | . 1 . Repair 1 | . 1 . Recycling Unit Hacks . | . . . Scanalyzer . | . . . Garrison Access Hacks . | . . . Unauthorized Hacks . | . . . Terminals . | . . . Fabricators . | . . . Repair Stations . | . . . Recycling Units . | . . . Scanalyzers . | . . . Garrison Access . | . . . Data Cores Recovered . | . . . Used . | . . . Hacking Detections 2 | . 2 . Full Trace Events 1 | . 1 . Feedback Events . | . . . Feedback Blocked . | . . . Robot Schematics Acquired . | . . . Robots Built . | . . . Authchips . | . . . Time . | . . . Total Robot Build Rating . | . . . Part Schematics Acquired . | . . . Parts Built . | . . . Authchips . | . . . Time . | . . . Total Part Build Rating . | . . . Part Studies Acquired . | . . . Parts Repaired 1 | . 1 . Time 26 | . 26 . Parts Recycled . | . . . Recycled Matter . | . . . Retrieved Matter . | . . . Retrieved Components . | . . . Parts Scanalyzed . | . . . Part Schematics Acquired . | . . . Parts Damaged . | . . . Bothacking | -11 -10 -10 ------------ Run | Yrd Mat Sub Used RIF Installer . | . . . Robots Hacked . | . . . Non-combat . | . . . Combat . | . . . Robot Hacks Applied . | . . . Relay Couplers Released . | . . . Fabnet Peak Effective % . | . . . Robots Rewired . | . . . Allies Hacked . | . . . Hacks Repelled . | . . . Allies | -11 -10 -10 -------- Run | Yrd Mat Sub Total Allies . | . . . Largest Group . | . . . Highest-Rated Group . | . . . Highest-Rated Ally . | . . . Total Orders . | . . . Ally Attacks . | . . . Total Damage . | . . . Kills . | . . . Allies Corrupted . | . . . Allies Melted . | . . . Intel | -11 -10 -10 ------- Run | Yrd Mat Sub Active Infowar (turns) 453 | . 416 37 Optics 447 | . 416 31 Terrain 6 | . . 6 Robot Analysis Total . | . . . Derelict Logs Recovered . | . . . Drone Launches . | . . . Drone Recoveries . | . . . Exploration | -11 -10 -10 ------------- Run | Yrd Mat Sub Turns Passed 2239 | 552 913 774 Spaces Moved 1134 | 217 340 577 Core 103 | 98 . 5 Treads . | . . . Legs 945 | 119 340 486 Wheels 86 | . . 86 Hover . | . . . Flight . | . . . Fastest Speed 50 | 50 120 100 Average Speed 150 | 108 229 120 Slowest Speed 260 | 150 260 260 Overloaded Moves . | . . . Propulsion Burnouts . | . . . Robots Hopped . | . . . Potential Cave-ins . | . . . Cave-ins Triggered . | . . . Exploration Rate (%) 31 | 13 47 34 Regions Visited 2 Branch Regions 1 Pre-discovered Areas . | . . . Known Exits Taken . | . . . Unknown Exits Taken 2 | 1 1 . Scrap Searched . | . . . Spaces Dug . | . . . Terrain Destroyed 35 | . 35 . Melee . | . . . Projectile . | . . . AOE 35 | . 35 . Terrain Rammed . | . . . Walls Destroyed . | . . . Machines Disabled . | . . . Actions | -11 -10 -10 --------- Run | Yrd Mat Sub Total 1591 | 526 423 642 Wait 335 | 294 36 5 Move 1132 | 216 339 577 Hop . | . . . Pick Up 27 | 6 8 13 Fast Attach . | . . . Attach 20 | 6 5 9 Detach 4 | . 1 3 Swap 5 | . 1 4 Drop 8 | . . 8 Fire 58 | 4 31 23 Melee . | . . . Ram . | . . . Kick 2 | . 2 . Crush . | . . . Escape Stasis . | . . . Rewire . | . . . Trap . | . . . Miscellaneous . | . . . Route ------- -11/Scrapyard -10/Materials (discovered 2 exits: [*Mat] / [*Sub]) -10/Subcaves (discovered 1 exit: [*Mat]) History --------- Turn | Location | Event 2 | -11/Scrapyard | Met Revision 17 41 | -11/Scrapyard | Discovered new exit (range 8) 553 | -11/Scrapyard | Entered Materials 554 | -10/Materials | Build established: Mutant 623 | -10/Materials | Repaired Heat Sink? 1064 | -10/Materials | Discovered new exit (range 13) 1443 | -10/Materials | Discovered new exit (range 11) 1466 | -10/Materials | Entered Subcaves 1467 | -10/Subcaves | Approached by a straggling Scientist 1583 | -10/Subcaves | Ambushed by swarm of Subdwellers 1584 | -10/Subcaves | Ambushed by Subdwellers from Twisted Machinery 1598 | -10/Subcaves | Core integrity fell below 50% 1622 | -10/Subcaves | Core integrity fell below 20% 1909 | -10/Subcaves | Build established: Scavenger-Mutant 2050 | -10/Subcaves | Discovered new exit (range 15) 2240 | -10/Subcaves | Destroyed by G5-P0U(R) with Subdweller Machine Gun Last Messages --------------- U8-4SW(c): "I think it's somewhere west of here" Want a larger map view with more modal windows? Or have a large enough display to fit a bigger map in exchange for smaller text? Consider selecting a different UI Layout in the option menu. U8-4SW(c): "I think it's somewhere west of here" EXIT=FOUND U8-4SW(c): "I think it's somewhere west of here" Sub. Power Source shoots sparks and powers down. U8-4SW(c): "I think it's somewhere southwest of here" Subatomizers dissect the Multitool. Acquired Battle Rifle. Dropped Sub. Machine Gun. Subatomizers dissect the Multitool. U8-4SW(c): "I think it's somewhere southwest of here" G5-P0U(R): "LEAVESUB!" Map ----- +----------------------------------------------------+ | ?????????????????????????????????????????????????? | | ?????????????????????????????????????????????????? | | ?????????????????????????????????????????????????? | | ?????????????????????????????????????????????????? | | ?????????????????????????????????????????????????? | | ?????????????????????????????????????????????????? | | ?????????????????????????????????????????????????? | | ?????????????????????????????????????????????????? | | ?????????????????????????????????????????????????? | | ?????????????????????????????????????????????????? | | ?????????????????????????????????????????????????? | | ?????????????????????????????????????????????????? | | ?????????????????????????????## ????????????????? | | ????????????????????????????? ??????????????? | | ????????????????????????????? ?? ????????????? | | ???????????????????????????? #? ?????????????? | | ???????????????????????????? # ??????????????? | | ???????????????????????????? < # ?????????????? | | ????????????????????????#### <